Cogmind - Beta 15 @@@ ROGUE MODE // 2025.09.18 @ 21:42:01 Player: beans Result: Destroyed by Y-45 Defender with Heavy Assault Rifle Performance ------------- Evolutions (1) 500 Regions Visited (2) 400 Robots Destroyed (14) 70 Value Destroyed (269) 269 Prototype IDs (3) 60 Alien Tech Used (0) 0 Bonus (0) 0 TOTAL SCORE: 1299 Bonus ------- None Cogmind --------- Core Integrity 0/400 Matter 66/300 Energy 97/100 System Corruption 0% Temperature Cool (72) Movement Core (100) Ox1 Location -9/Materials Parts ------- > --- POWER (1) -------- (None) > --- PROPULSION (4) --- (None) > --- UTILITY (2) ------ Advanced Targeting Computer Advanced Targeting Computer > --- WEAPON (2) ------- Improved Medium Laser Mini Grenade Launcher > --- INVENTORY (5) ---- Advanced Targeting Computer Advanced Targeting Computer Spread Laser Peak State ------------ > --- POWER ------------ Cooled Ion Engine > --- PROPULSION ------- VTOL Module > --- UTILITY ---------- Advanced Targeting Computer Advanced Targeting Computer > --- WEAPON ----------- Mini Grenade Launcher > --- INVENTORY -------- Advanced Targeting Computer Advanced Targeting Computer [Rating: 13] Favorites ----------- Power Ion Engine Engine Ion Engine Propulsion VTOL Module Flight Unit VTOL Module Utility Advanced Targeting Computer Processor Advanced Targeting Computer Weapon Light Assault Rifle Energy Gun Improved Medium Laser Ballistic Gun Light Assault Rifle Launcher Mini Grenade Launcher Build | -11 -10 -9 ------- Run | Yrd Mat Mat Slots Evolved 2 | . . 2 Power . | . . . Propulsion 2 | . . 2 Utility . | . . . Weapon . | . . . Parts Attached 11 | 3 . 8 Power 2 | 1 . 1 Engine 2 | 1 . 1 Core . | . . . Reactor . | . . . Propulsion 1 | . . 1 Treads . | . . . Leg . | . . . Wheel . | . . . Hover . | . . . Flight 1 | . . 1 Utility 2 | . . 2 Device . | . . . Storage . | . . . Processor 2 | . . 2 Hackware . | . . . Protection . | . . . Artifact . | . . . Weapon 6 | 2 . 4 Energy Gun 1 | . . 1 Energy Cannon . | . . . Ballistic Gun 3 | 2 . 1 Ballistic Cannon . | . . . Launcher 2 | . . 2 Special Weapon . | . . . Impact Weapon . | . . . Slashing Weapon . | . . . Piercing Weapon . | . . . Special Melee Weapon . | . . . Unidentified Prototypes 3 | . . 3 Parts Lost 6 | . 3 3 Power 2 | . 1 1 Propulsion 1 | . . 1 Utility . | . . . Weapon 3 | . 2 1 Highest Loss Streak 3 | . 3 3 To Critical Strikes . | . . . Average Backups . | . . 1 Power . | . . . Propulsion . | . . . Utility . | . . 1 Weapon . | . . . Tool/Special . | . . . Unused Backups 2 | . . 2 Power . | . . . Propulsion . | . . . Utility 2 | . . 2 Weapon . | . . . Tool/Special . | . . . Average Slot Usage (%) 29 | . 26 31 Engine 5 | . 7 4 Flight 1 | . . 3 Processor 11 | . . 18 Ballistic Gun 7 | . 18 . Launcher 2 | . . 3 Peak Build Rating 13 | 3 3 13 Average Rating 5 | 2 1 8 On Entrance 1 | . 3 . Naked Turns 62 | . 44 18 Heaviest Build 9 | 8 8 9 Greatest Support 4 | 3 3 4 Greatest Overweight (x) 2 | 2 2 2 Average Overweight (x) . | 1 . . Largest Inventory Capacity 5 | 5 5 5 Average Capacity 5 | 5 5 5 Most Carried 4 | 2 . 4 Average Carried 1 | . . 2 Final Capacity 5 | 5 5 5 Final Carried 3 | . . 3 Class Distribution -------------------- 100% | Mutant Dominant Class ---------------- Mutant | -10/Materials Mutant | -9/Materials Resources | -11 -10 -9 ----------- Run | Yrd Mat Mat Matter Collected 231 | 229 . 2 Remotely . | . . . Salvage Created 293 | . 44 249 Parts 19 | . . 19 Haulers Intercepted 1 | . . 1 Recyclers Shooed . | . . . Parts Field Recycled . | . . . Retrieved Matter . | . . . Parts Self-Destructed . | . . . Prevented . | . . . Kills | -11 -10 -9 ------- Run | Yrd Mat Mat Combat Hostiles Destroyed 8 | . 1 7 Guns 3 | . 1 2 AOE 5 | . . 5 Classes Destroyed 8 | . 1 7 Worker 2 | . . 2 Builder 1 | . . 1 Hauler 1 | . . 1 Recycler 1 | . . 1 Watcher 1 | . . 1 Swarmer 4 | . . 4 Grunt 2 | . 1 1 Sentry 2 | . . 2 Best Kill Streak 13 | . 1 13 Combat Bots Only 7 | . 1 7 Max Kills in Single Turn 3 | . 1 3 Gunslinging . | . . . Exploded 2 | . . 2 Melee . | . . . Uniques/NPCs Destroyed . | . . . Combat | -11 -10 -9 -------- Run | Yrd Mat Mat Hostile Shots Fired 90 | . 34 56 Missed 23 | . 5 18 Hits 67 | . 29 38 Projectile 67 | . 29 38 Critical Strikes 4 | . 1 3 Damage Taken 978 | . 409 569 Core 562 | . 150 412 Absorbed by Shields . | . . . Core Remaining (%) 70 | 100 40 . Volleys Fired 33 | . 18 15 Largest 2 | . 2 2 Hottest 86 | . 40 86 Shots Fired 50 | . 27 23 Gun 36 | . 27 9 Cannon . | . . . Launcher 14 | . . 14 Special . | . . . Kinetic 27 | . 27 . Thermal 9 | . . 9 Explosive 14 | . . 14 Electromagnetic . | . . . Robot Hit Streak 11 | . 7 11 Robot Miss Streak 1 | . 1 1 Penetration Max . | . . . Secondary Targets 1 | . 1 . Max Gunslinging Chain 1 | . 1 . Shots Hit Robots 34 | . 20 14 Core Hits 25 | . 5 20 Critical Kills . | . . . Critical Parts Destroyed . | . . . Critical Strikes . | . . . Melee Attacks . | . . . Impact . | . . . Slashing . | . . . Piercing . | . . . Sneak Attacks . | . . . Combat Hostiles . | . . . Follow-up Attacks . | . . . Damage Inflicted 1051 | . 180 871 Guns 278 | . 180 98 Cannons . | . . . Explosions 773 | . . 773 Melee . | . . . Ramming . | . . . Kinetic 180 | . 180 . Thermal 98 | . . 98 Explosive 773 | . . 773 Electromagnetic . | . . . Impact . | . . . Slashing . | . . . Piercing . | . . . Highest Corruption . | . . . Average Corruption . | . . . Corruption Purged . | . . . Corruption Blocked . | . . . Overload Shots . | . . . Overflow Damage 33 | . . 33 Projectiles . | . . . Explosions 33 | . . 33 Melee . | . . . Knockbacks . | . . . Impact . | . . . Kinetic . | . . . Secondary . | . . . Self-Inflicted Damage 47 | . . 47 Shots 2 | . . 2 Rammed . | . . . Targets Rammed . | . . . Kicked . | . . . Crushed . | . . . Highest Temperature 72 | . 19 72 Average Temperature 25 | . 7 43 Received Heat Transfer 432 | . 252 180 Siege Activations . | . . . Martial Activations . | . . . Shielding Activations . | . . . Robots Disrupted . | . . . Combat Hostiles . | . . . Robots Corrupted . | . . . Combat Hostiles . | . . . Parts Fried . | . . . Impact Corruptions . | . . . Robots Melted . | . . . Combat Hostiles . | . . . Parts Melted 1 | . . 1 Heat Transferred 222 | . . 222 Parts Sabotaged . | . . . Parts Stolen . | . . . Parts Stripped . | . . . Power Chain Reactions . | . . . Alert | -11 -10 -9 ------- Run | Yrd Mat Mat Maximum Alert Level 1 | . . 1 Low Security (%) 96 | 100 100 93 Level 1 3 | . . 6 Level 2 . | . . . Level 3 . | . . . Level 4 . | . . . Level 5 . | . . . High Security . | . . . Max Security . | . . . Peak Influence 273 | . 20 273 Initial . | . . . Average 21 | . . 42 Influence Increases 344 | . 20 324 Destroy 0b10 Robot/C 160 | . 20 140 Destroy 0b10 Robot/NC 30 | . . 30 Destroy Leader 34 | . . 34 Disable Machine 60 | . . 60 Destroy Structure 60 | . . 60 Influence Decreases 80 | . 20 60 Time Decay 40 | . 10 30 Lost Part 40 | . 10 30 Squads Dispatched 1 | . . 1 Investigation . | . . . Extermination . | . . . Reinforcement 1 | . . 1 Assault . | . . . Garrison . | . . . Intercept . | . . . Searches Triggered . | . . . Construction Impeded 1 | . . 1 Haulers Reinforced . | . . . Active Scanning Responses . | . . . Cargo Convoy Interrupts . | . . . Stealth | -11 -10 -9 --------- Run | Yrd Mat Mat Distress Signals 1 | . . 1 Communications Jammed . | . . . Distress Signals . | . . . Times Spotted 12 | . 2 10 Peak Tracking Total 6 | . 2 6 Tactical Retreats . | . . . Traps | -11 -10 -9 ------- Run | Yrd Mat Mat Traps Triggered 1 | . . 1 Indirectly . | . . . Trap Hack Attempts . | . . . Triggered . | . . . Disarmed . | . . . Reprogrammed . | . . . Reused . | . . . Traps Extracted . | . . . Installed . | . . . Triggered . | . . . Machines | -11 -10 -9 ---------- Run | Yrd Mat Mat Machines Disabled 4 | . . 4 Max in Single Turn 2 | . . 2 Machines Repaired . | . . . Machines Dismantled . | . . . Machines Sabotaged . | . . . Overloaded Fab Kills . | . . . Hacking | -11 -10 -9 --------- Run | Yrd Mat Mat Machines Accessed . | . . . Terminals . | . . . Fabricators . | . . . Repair Stations . | . . . Recycling Units . | . . . Scanalyzers . | . . . Garrison Access . | . . . Total Hacks . | . . . Successful . | . . . Failed . | . . . Catastrophic . | . . . Database Lockouts . | . . . Manual . | . . . Terminals . | . . . Fabricators . | . . . Repair Stations . | . . . Recycling Units . | . . . Scanalyzers . | . . . Garrison Access . | . . . Terminal Hacks . | . . . Fabricator Hacks . | . . . Repair Station Hacks . | . . . Recycling Unit Hacks . | . . . Scanalyzer . | . . . Garrison Access Hacks . | . . . Unauthorized Hacks . | . . . Terminals . | . . . Fabricators . | . . . Repair Stations . | . . . Recycling Units . | . . . Scanalyzers . | . . . Garrison Access . | . . . Data Cores Recovered . | . . . Used . | . . . Hacking Detections . | . . . Full Trace Events . | . . . Feedback Events . | . . . Feedback Blocked . | . . . Robot Schematics Acquired . | . . . Robots Built . | . . . Authchips . | . . . Time . | . . . Total Robot Build Rating . | . . . Part Schematics Acquired . | . . . Parts Built . | . . . Authchips . | . . . Time . | . . . Total Part Build Rating . | . . . Parts Repaired . | . . . Time . | . . . Parts Recycled . | . . . Recycled Matter . | . . . Retrieved Matter . | . . . Retrieved Components . | . . . Parts Scanalyzed . | . . . Part Schematics Acquired . | . . . Parts Damaged . | . . . Bothacking | -11 -10 -9 ------------ Run | Yrd Mat Mat Used RIF Installer . | . . . Robots Hacked . | . . . Non-combat . | . . . Combat . | . . . Robot Hacks Applied . | . . . Relay Couplers Released . | . . . Fabnet Peak Effective % . | . . . Robots Rewired . | . . . Allies Hacked . | . . . Hacks Repelled . | . . . Allies | -11 -10 -9 -------- Run | Yrd Mat Mat Total Allies . | . . . Largest Group . | . . . Highest-Rated Group . | . . . Highest-Rated Ally . | . . . Total Orders . | . . . Ally Attacks . | . . . Total Damage . | . . . Kills . | . . . Allies Corrupted . | . . . Allies Melted . | . . . Intel | -11 -10 -9 ------- Run | Yrd Mat Mat Active Infowar (turns) . | . . . Robot Analysis Total . | . . . Derelict Logs Recovered . | . . . Drone Launches . | . . . Drone Recoveries . | . . . Exploration | -11 -10 -9 ------------- Run | Yrd Mat Mat Turns Passed 398 | 54 143 201 Spaces Moved 352 | 37 127 188 Core 324 | 37 127 160 Treads . | . . . Legs . | . . . Wheels . | . . . Hover . | . . . Flight 28 | . . 28 Fastest Speed 50 | 50 50 50 Average Speed 80 | 133 79 70 Slowest Speed 195 | 150 150 195 Overloaded Moves . | . . . Propulsion Burnouts . | . . . Robots Hopped . | . . . Potential Cave-ins . | . . . Cave-ins Triggered . | . . . Exploration Rate (%) 19 | 4 31 22 Regions Visited 2 Branch Regions . Pre-discovered Areas . | . . . Known Exits Taken . | . . . Unknown Exits Taken 2 | 1 1 . Scrap Searched . | . . . Spaces Dug . | . . . Terrain Destroyed 70 | . . 70 Melee . | . . . Projectile . | . . . AOE 70 | . . 70 Terrain Rammed . | . . . Walls Destroyed . | . . . Machines Disabled . | . . . Actions | -11 -10 -9 --------- Run | Yrd Mat Mat Total 422 | 42 144 236 Wait 13 | . . 13 Move 350 | 36 126 188 Hop . | . . . Pick Up 14 | 3 . 11 Fast Attach . | . . . Attach 11 | 3 . 8 Detach . | . . . Swap . | . . . Drop 1 | . . 1 Fire 33 | . 18 15 Melee . | . . . Ram . | . . . Kick . | . . . Crush . | . . . Escape Stasis . | . . . Rewire . | . . . Trap . | . . . Miscellaneous . | . . . Route ------- -11/Scrapyard -10/Materials (discovered 2 exits: *Mat / [*Min]) -9/Materials History --------- Turn | Location | Event 19 | -11/Scrapyard | Discovered new exit (range 16) 55 | -11/Scrapyard | Entered Materials 78 | -10/Materials | Discovered new exit (range 16) 153 | -10/Materials | Core integrity fell below 50% 185 | -10/Materials | Lost 3 parts (1p2w) 189 | -10/Materials | Discovered new exit (range 15) 198 | -10/Materials | Entered another Materials area 198 | -9/Materials | Evolved 2 slots: Propulsion x2 336 | -9/Materials | Build established: Mutant 365 | -9/Materials | Core integrity fell below 50% 386 | -9/Materials | Core integrity fell below 20% 395 | -9/Materials | Lost 3 parts (1p1n1w) 399 | -9/Materials | Destroyed by Y-45 Defender with Heavy Assault Rifle Last Messages --------------- W-16 Scout destroyed. U-05 Engineer builds a Wall. K-01 Serf collects debris. Heat Sink melted. Y-45 Defender destroyed. Atomic Centrifuge disabled. K-01 Serf collects debris. The unstable cave ceiling collapses. U-05 Engineer lays Concrete. K-01 Serf collects debris. U-05 Engineer lays Concrete. U-05 Engineer builds a Wall. The unstable cave ceiling collapses. K-01 Serf collects debris. Destroyed Lgt. Ion Engine. U-05 Engineer destroyed. K-01 Serf destroyed. K-01 Serf collects debris. K-01 Serf destroyed. K-01 Serf collects debris. Map ----- +----------------------------------------------------+ | ??????????????????????????????????? | | ?????????????????????????????????## | | ?????????????????????????????????# | | ?????????????????????????????????# | | ?????????????????????????????????# | | ??????????????????????????######### | | ??????????????????????????# # | | ??????????????????????????# " # | | ??????????????????????????# "" # | | ??????????????????????????# "" # | | ??????????????????????????# """ # | | ??????????????????????????# "" # | | ??????????????????????????# """ + | | ??????????????????? ??????# """ # | | ????????????????## ""????# """ # | | ???????????????# # "????# " # | | ??????????????? "???# # | | ??????????????? ???####+#### | | ?????????????? "??????# | | ?????????????## ""??????# | | ????????##### = "" ?????# | | ????????# %[ ????# | | ????????# * ######?# | | ????????# ]! u ! #?# #### | | ????????# ]! [ ! #?# #??? | | ??????### @ k #?# #??? | | ??????## =%= #?# #??? | | ??????## [% ###+######+#??? | | ??????# = #### + #??? | | ??????# % """## # """ #??? | | ??????## [ "T"## # """ #??? | | ??????## [ ![ + """ !#??? | | ???????# Y =[ %[ # """ #??? | | ???????## "" # #??? | | ????????# """ #####/##??? | | ???????? = "" #???# #???? | | ???????? ##### #???? | | ??????? #???? | | ????? ##T####+#### #???? | | ????# ######?#### # #???? | | ?????# #??????????# + #???? | | ?????# ???????????# """ ##+###?? | | ?????? ?????????????# """ # #?? | | ????????????????????# """ #"" #?? | | ????????????????????# #"T #?? | | ????????????????????###/####"" #?? | | ??????????????????????# / !#?? | | ??????????????????????# #### #?? | | ??????????????????????# #??# #?? | | ??????????????????????# #??# #?? | +----------------------------------------------------+ Best States ------------- Heat Dissipation 28 Energy Generation 14 Energy Capacity 280 Matter Stores 299 Matter Capacity 300 Sight Range 16 Terrain Scan Density 10 Evasion (%) 50 Targeting Accuracy 16 Item Schematics ----------------- None Robot Schematics ------------------ None Fabricated ------------ Nothing Repaired ---------- Nothing Alien Tech Used ----------------- None Achievements -------------- None Challenges ------------ None Game ------ Seed SpliceCoordinationGuard Manual? 0 Play Time 00:05:35 Cumulative 144.8 hours Start 2025.09.18 @ 21:38:32 End 2025.09.18 @ 21:42:01 Sessions 1 Manual Loads 0 Difficulty Rogue Special Mode None Game No. 480 Rogue 480 Adventurer 0 Explorer 0 Win Type - Total 0 Types 0/0/0/0/0/0/0/0/0/0 Lore% 53 Gallery% 50 Achievement% 39 Wizard Run 0 Options --------- Layout 2 ASCII 0 Keyboard 0 Movement Mouse Keybinds 0 Fullscreen 2 Font 24/Smallcaps Map View 50x44 Zoom Use 0% Tactical HUD 0 Map Filters NONE Filters NONE Steam 1 RUN: 9213b034-1b1b-4978-9478-0124a3d94114